[Event "Late-Titled-Tuesday-Blitz-October-03-2023"]
[Site "Chess.com"]
[Date "2023.10.03"]
[Round "7"]
[White "jaskol95"]
[Black "Leebit02"]
[Result "0-1"]
[WhiteElo "2618"]
[BlackElo "2507"]
[TimeControl "180+1"]
[EndTime "15:14:45 PDT"]
[Termination "Leebit02 won by resignation"]

1. e4 {[%clk 0:02:56.8]} 1... c5 {[%clk 0:03:00.1]} 2. Nf3 {[%clk 0:02:56.1]}
2... e6 {[%clk 0:03:00.6]} 3. b4 {[%clk 0:02:56.2]} 3... cxb4 {[%clk 0:02:58.4]}
4. d4 {[%clk 0:02:56.7]} 4... Nf6 {[%clk 0:02:51.7]} 5. Bd3 {[%clk 0:02:54.9]}
5... Nc6 {[%clk 0:02:48.4]} 6. O-O {[%clk 0:02:47.6]} 6... Be7 {[%clk
0:02:46.5]} 7. a3 {[%clk 0:02:39.6]} 7... O-O {[%clk 0:02:36.2]} 8. e5 {[%clk
0:02:28.1]} 8... Nd5 {[%clk 0:02:35.9]} 9. axb4 {[%clk 0:02:28]} 9... Ncxb4
{[%clk 0:02:30.5]} 10. Be2 {[%clk 0:02:21.7]} 10... d6 {[%clk 0:02:10.6]} 11. c3
{[%clk 0:02:05.3]} 11... Nc6 {[%clk 0:02:06.2]} 12. exd6 {[%clk 0:02:03.5]}
12... Bxd6 {[%clk 0:01:57.1]} 13. Bg5 {[%clk 0:02:03]} 13... Be7 {[%clk
0:01:54]} 14. Bxe7 {[%clk 0:01:59.8]} 14... Qxe7 {[%clk 0:01:52]} 15. c4 {[%clk
0:02:00.3]} 15... Nf4 {[%clk 0:01:51.5]} 16. Nc3 {[%clk 0:01:58]} 16... Rd8
{[%clk 0:01:48.5]} 17. Re1 {[%clk 0:01:52.5]} 17... Qf6 {[%clk 0:01:42.4]} 18.
Ne4 {[%clk 0:01:31.5]} 18... Qg6 {[%clk 0:01:38.4]} 19. Ng3 {[%clk 0:01:21]}
19... b6 {[%clk 0:01:26.3]} 20. Bf1 {[%clk 0:01:11.4]} 20... Bb7 {[%clk
0:01:25.7]} 21. Qd2 {[%clk 0:01:05.8]} 21... Qh6 {[%clk 0:01:19.1]} 22. Red1
{[%clk 0:00:41]} 22... Rd7 {[%clk 0:01:17.2]} 23. Qe3 {[%clk 0:00:39.5]} 23...
Rad8 {[%clk 0:01:14.3]} 24. d5 {[%clk 0:00:39.3]} 24... exd5 {[%clk 0:01:11.7]}
25. cxd5 {[%clk 0:00:39.7]} 25... Nxd5 {[%clk 0:00:46]} 26. Qxh6 {[%clk
0:00:38.9]} 26... gxh6 {[%clk 0:00:46.7]} 27. Bb5 {[%clk 0:00:36.3]} 27... Ndb4
{[%clk 0:00:38.8]} 28. Re1 {[%clk 0:00:24.4]} 28... a6 {[%clk 0:00:36.3]} 29.
Bc4 {[%clk 0:00:23.1]} 29... b5 {[%clk 0:00:32]} 30. Bb3 {[%clk 0:00:23.8]}
30... Rd3 {[%clk 0:00:27.4]} 31. Rab1 {[%clk 0:00:18.2]} 31... Bc8 {[%clk
0:00:10.5]} 32. h3 {[%clk 0:00:13]} 32... Kg7 {[%clk 0:00:09.2]} 33. Nh5+ {[%clk
0:00:12.2]} 33... Kf8 {[%clk 0:00:08.5]} 34. Nf6 {[%clk 0:00:12.2]} 34... Bf5
{[%clk 0:00:06.2]} 35. Nh4 {[%clk 0:00:10.9]} 35... Bg6 {[%clk 0:00:06.4]} 36.
Nxg6+ {[%clk 0:00:10.9]} 36... hxg6 {[%clk 0:00:07.1]} 37. Ng4 {[%clk
0:00:10.6]} 37... Kg7 {[%clk 0:00:07.4]} 38. Rbc1 {[%clk 0:00:10.7]} 38... Rxb3
{[%clk 0:00:07.1]} 39. Ne3 {[%clk 0:00:08.4]} 39... Rbd3 {[%clk 0:00:06.5]} 40.
g3 {[%clk 0:00:05.6]} 40... R3d6 {[%clk 0:00:07.1]} 41. Kg2 {[%clk 0:00:06]}
41... Nd3 {[%clk 0:00:07.4]} 42. Red1 {[%clk 0:00:04.6]} 42... Nxc1 {[%clk
0:00:07.8]} 43. Rxc1 {[%clk 0:00:05.5]} 43... Nd4 {[%clk 0:00:08]} 44. Rc7
{[%clk 0:00:05.3]} 44... R8d7 {[%clk 0:00:07.9]} 45. Rc8 {[%clk 0:00:06]} 45...
b4 {[%clk 0:00:08.1]} 46. Rb8 {[%clk 0:00:06.3]} 46... Nb5 {[%clk 0:00:07.6]}
47. Nc4 {[%clk 0:00:06.5]} 47... Re6 {[%clk 0:00:07.6]} 48. Ra8 {[%clk 0:00:05]}
48... b3 {[%clk 0:00:07.9]} 49. Rb8 {[%clk 0:00:05.5]} 49... Rc6 {[%clk
0:00:07.5]} 50. Ne5 {[%clk 0:00:05.6]} 50... b2 {[%clk 0:00:06.9]} 51. Nxc6
{[%clk 0:00:05.7]} 51... b1=Q {[%clk 0:00:07.4]} 52. Ne5 {[%clk 0:00:06.3]}
52... Qe4+ {[%clk 0:00:07.6]} 53. Nf3 {[%clk 0:00:06.9]} 53... Rd3 {[%clk
0:00:08]} 0-1

[Event "Late-Titled-Tuesday-Blitz-October-03-2023"]
[Site "Chess.com"]
[Date "2023.10.03"]
[Round "7"]
[White "JohnWhite1952"]
[Black "emeli_chess"]
[Result "0-1"]
[WhiteElo "2073"]
[BlackElo "2372"]
[TimeControl "180+1"]
[EndTime "15:14:45 PDT"]
[Termination "emeli_chess won on time"]

1. e4 {[%clk 0:03:00]} 1... c5 {[%clk 0:02:55.4]} 2. Nf3 {[%clk 0:02:59.4]} 2...
d6 {[%clk 0:02:54.5]} 3. c3 {[%clk 0:02:58.6]} 3... Nf6 {[%clk 0:02:53.5]} 4.
Be2 {[%clk 0:02:58.7]} 4... Bd7 {[%clk 0:02:51.1]} 5. d3 {[%clk 0:02:56.2]} 5...
Bc6 {[%clk 0:02:50.8]} 6. O-O {[%clk 0:02:53.9]} 6... Nbd7 {[%clk 0:02:50.3]} 7.
Re1 {[%clk 0:02:53.2]} 7... e6 {[%clk 0:02:50.2]} 8. Bf1 {[%clk 0:02:52.6]} 8...
Be7 {[%clk 0:02:50.2]} 9. Nbd2 {[%clk 0:02:49.6]} 9... O-O {[%clk 0:02:47.5]}
10. Nc4 {[%clk 0:02:47.8]} 10... b5 {[%clk 0:02:44.3]} 11. Ne3 {[%clk 0:02:44]}
11... a6 {[%clk 0:02:39.4]} 12. a4 {[%clk 0:02:39.8]} 12... bxa4 {[%clk
0:02:36.1]} 13. Qc2 {[%clk 0:02:30.7]} 13... Qb8 {[%clk 0:02:23.4]} 14. Nc4
{[%clk 0:02:22.2]} 14... Qb3 {[%clk 0:02:15]} 15. Qe2 {[%clk 0:02:18.1]} 15...
a5 {[%clk 0:01:56]} 16. Bf4 {[%clk 0:02:07.4]} 16... e5 {[%clk 0:01:45.6]} 17.
Bg5 {[%clk 0:01:57.7]} 17... h6 {[%clk 0:01:44.8]} 18. Bh4 {[%clk 0:01:53.3]}
18... Rfe8 {[%clk 0:01:37.7]} 19. Ra3 {[%clk 0:01:42.8]} 19... Qb7 {[%clk
0:01:35.2]} 20. Bxf6 {[%clk 0:01:31.8]} 20... Nxf6 {[%clk 0:01:30.4]} 21. g3
{[%clk 0:01:22.9]} 21... Qa6 {[%clk 0:01:28]} 22. Bh3 {[%clk 0:01:17.4]} 22...
Rab8 {[%clk 0:01:26.8]} 23. Nh4 {[%clk 0:01:12.5]} 23... Bf8 {[%clk 0:01:20.5]}
24. Nf5 {[%clk 0:01:11.4]} 24... Red8 {[%clk 0:01:11.3]} 25. Qf3 {[%clk
0:01:10.5]} 25... Kh7 {[%clk 0:01:02.8]} 26. Rd1 {[%clk 0:00:56]} 26... Rb3
{[%clk 0:01:01.5]} 27. Raa1 {[%clk 0:00:53.1]} 27... a3 {[%clk 0:00:55.7]} 28.
Rxa3 {[%clk 0:00:48]} 28... Rxa3 {[%clk 0:00:56]} 29. Nxa3 {[%clk 0:00:46.6]}
29... d5 {[%clk 0:00:47.7]} 30. exd5 {[%clk 0:00:33.1]} 30... Bxd5 {[%clk
0:00:47.5]} 31. Qe3 {[%clk 0:00:32.9]} 31... g6 {[%clk 0:00:38.2]} 32. Nh4
{[%clk 0:00:30]} 32... Qd6 {[%clk 0:00:27.9]} 33. Nf3 {[%clk 0:00:26.4]} 33...
Bxf3 {[%clk 0:00:23.8]} 34. Qxf3 {[%clk 0:00:26.8]} 34... e4 {[%clk 0:00:22.6]}
35. Qe3 {[%clk 0:00:19.5]} 35... exd3 {[%clk 0:00:22.2]} 36. Bf1 {[%clk
0:00:18.5]} 36... d2 {[%clk 0:00:19.1]} 37. Nc4 {[%clk 0:00:18.8]} 37... Qd5
{[%clk 0:00:15.4]} 38. Nxd2 {[%clk 0:00:16.2]} 38... Bg7 {[%clk 0:00:14.7]} 39.
Be2 {[%clk 0:00:14]} 39... Qc6 {[%clk 0:00:11]} 40. Nc4 {[%clk 0:00:11.9]} 40...
Rxd1+ {[%clk 0:00:10.2]} 41. Bxd1 {[%clk 0:00:11.6]} 41... Nd5 {[%clk
0:00:09.4]} 42. Qe4 {[%clk 0:00:08.2]} 42... Qd7 {[%clk 0:00:07]} 43. Bf3 {[%clk
0:00:05.8]} 43... Nf6 {[%clk 0:00:06.8]} 44. Qc6 {[%clk 0:00:03.6]} 44... h5
{[%clk 0:00:06.2]} 0-1

[Event "Late-Titled-Tuesday-Blitz-October-03-2023"]
[Site "Chess.com"]
[Date "2023.10.03"]
[Round "7"]
[White "Bauman_Guy"]
[Black "Malev212"]
[Result "0-1"]
[WhiteElo "2854"]
[BlackElo "2658"]
[TimeControl "180+1"]
[EndTime "15:14:46 PDT"]
[Termination "Malev212 won by resignation"]

1. e4 {[%clk 0:03:00.9]} 1... g6 {[%clk 0:02:53.6]} 2. d4 {[%clk 0:03:00.3]}
2... Bg7 {[%clk 0:02:53.2]} 3. Nc3 {[%clk 0:03:01.2]} 3... c6 {[%clk 0:02:53]}
4. Bc4 {[%clk 0:03:01.8]} 4... d6 {[%clk 0:02:51.9]} 5. Nf3 {[%clk 0:03:01.7]}
5... Nf6 {[%clk 0:02:48.3]} 6. Bb3 {[%clk 0:03:01.8]} 6... Bg4 {[%clk
0:02:46.7]} 7. h3 {[%clk 0:03:01.9]} 7... Bxf3 {[%clk 0:02:46.4]} 8. Qxf3 {[%clk
0:03:02.8]} 8... Nbd7 {[%clk 0:02:46.1]} 9. O-O {[%clk 0:02:58.1]} 9... O-O
{[%clk 0:02:45.8]} 10. Be3 {[%clk 0:02:57.1]} 10... b5 {[%clk 0:02:44.8]} 11. a4
{[%clk 0:02:52.3]} 11... b4 {[%clk 0:02:43.6]} 12. Ne2 {[%clk 0:02:52.5]} 12...
Qc7 {[%clk 0:02:37.7]} 13. Rfd1 {[%clk 0:02:51.4]} 13... c5 {[%clk 0:02:34.1]}
14. dxc5 {[%clk 0:02:34.4]} 14... Nxc5 {[%clk 0:02:33.3]} 15. Bxc5 {[%clk
0:02:27.2]} 15... Qxc5 {[%clk 0:02:32.9]} 16. Nf4 {[%clk 0:02:26.4]} 16... a5
{[%clk 0:02:23.7]} 17. h4 {[%clk 0:02:18.2]} 17... Qe5 {[%clk 0:02:16.4]} 18.
Nd3 {[%clk 0:02:17.2]} 18... Qh5 {[%clk 0:01:49.5]} 19. Qxh5 {[%clk 0:02:00.1]}
19... Nxh5 {[%clk 0:01:48.9]} 20. Re1 {[%clk 0:01:53.8]} 20... e6 {[%clk
0:01:44.4]} 21. Rad1 {[%clk 0:01:53.3]} 21... Rfd8 {[%clk 0:01:43.3]} 22. f3
{[%clk 0:01:33.6]} 22... Kf8 {[%clk 0:01:41.8]} 23. g4 {[%clk 0:01:28.7]} 23...
Nf6 {[%clk 0:01:39.9]} 24. e5 {[%clk 0:01:29.2]} 24... Ne8 {[%clk 0:01:19]} 25.
f4 {[%clk 0:01:23.6]} 25... Rac8 {[%clk 0:01:10.6]} 26. Kf2 {[%clk 0:01:21.2]}
26... dxe5 {[%clk 0:01:08.6]} 27. fxe5 {[%clk 0:01:11.2]} 27... Rd4 {[%clk
0:01:01.1]} 28. Kg3 {[%clk 0:01:09.7]} 28... Nc7 {[%clk 0:00:50.3]} 29. Rf1
{[%clk 0:00:38.4]} 29... Ke7 {[%clk 0:00:47.3]} 30. Rf3 {[%clk 0:00:34.6]} 30...
Rcd8 {[%clk 0:00:33.7]} 31. Rdf1 {[%clk 0:00:32.5]} 31... Rxd3 {[%clk 0:00:31]}
32. cxd3 {[%clk 0:00:25.2]} 32... Bxe5+ {[%clk 0:00:30.4]} 33. Kg2 {[%clk
0:00:25.6]} 33... f5 {[%clk 0:00:30.2]} 34. g5 {[%clk 0:00:19.2]} 34... Bxb2
{[%clk 0:00:28.7]} 35. h5 {[%clk 0:00:19.7]} 35... Rd4 {[%clk 0:00:26.3]} 36.
hxg6 {[%clk 0:00:19.1]} 36... hxg6 {[%clk 0:00:25.6]} 37. Rh1 {[%clk 0:00:19.4]}
37... Na6 {[%clk 0:00:20.4]} 38. Re3 {[%clk 0:00:11.8]} 38... Nc5 {[%clk
0:00:18.8]} 39. Bc4 {[%clk 0:00:12.3]} 39... Rg4+ {[%clk 0:00:17.4]} 40. Rg3
{[%clk 0:00:12.6]} 40... Rxg3+ {[%clk 0:00:17]} 41. Kxg3 {[%clk 0:00:13.5]}
41... Nxa4 {[%clk 0:00:16.2]} 42. Rh7+ {[%clk 0:00:11.9]} 42... Kd6 {[%clk
0:00:15.6]} 43. Rh6 {[%clk 0:00:12.8]} 43... Nc5 {[%clk 0:00:14.8]} 44. Rxg6
{[%clk 0:00:13.3]} 44... a4 {[%clk 0:00:15.5]} 45. Rg8 {[%clk 0:00:13.1]} 45...
Be5+ {[%clk 0:00:15.3]} 46. Kf3 {[%clk 0:00:12.9]} 46... b3 {[%clk 0:00:14.8]}
47. Rb8 {[%clk 0:00:11.9]} 47... b2 {[%clk 0:00:13.4]} 48. g6 {[%clk 0:00:07.5]}
48... Nb3 {[%clk 0:00:12.8]} 49. Bxb3 {[%clk 0:00:01.7]} 49... b1=Q {[%clk
0:00:11.8]} 50. Rd8+ {[%clk 0:00:02.6]} 50... Ke7 {[%clk 0:00:10.9]} 51. g7
{[%clk 0:00:01.9]} 51... Bxg7 {[%clk 0:00:09.4]} 52. Rg8 {[%clk 0:00:01.7]}
52... axb3 {[%clk 0:00:08]} 53. Rxg7+ {[%clk 0:00:01.7]} 53... Kf6 {[%clk
0:00:08]} 54. Rg2 {[%clk 0:00:02.6]} 54... b2 {[%clk 0:00:07.7]} 0-1

[Event "Late-Titled-Tuesday-Blitz-October-03-2023"]
[Site "Chess.com"]
[Date "2023.10.03"]
[Round "7"]
[White "sergoy"]
[Black "Vaathi_Coming"]
[Result "1-0"]
[WhiteElo "3013"]
[BlackElo "2887"]
[TimeControl "180+1"]
[EndTime "15:14:52 PDT"]
[Termination "sergoy won on time"]

1. d4 {[%clk 0:03:00.9]} 1... Nf6 {[%clk 0:02:59.7]} 2. c4 {[%clk 0:03:01.6]}
2... a6 {[%clk 0:02:58.5]} 3. Nc3 {[%clk 0:03:00]} 3... c5 {[%clk 0:02:58.1]} 4.
d5 {[%clk 0:02:59.3]} 4... b5 {[%clk 0:02:58.2]} 5. Nf3 {[%clk 0:02:51]} 5... d6
{[%clk 0:02:56.4]} 6. Qc2 {[%clk 0:02:37.9]} 6... b4 {[%clk 0:02:43.1]} 7. Na4
{[%clk 0:02:37.9]} 7... e5 {[%clk 0:02:39.2]} 8. dxe6 {[%clk 0:02:35.6]} 8...
Bxe6 {[%clk 0:02:38.9]} 9. g3 {[%clk 0:02:34]} 9... Nc6 {[%clk 0:02:35.9]} 10.
Bg2 {[%clk 0:02:34]} 10... Rc8 {[%clk 0:02:31.2]} 11. O-O {[%clk 0:02:32.3]}
11... Be7 {[%clk 0:02:31]} 12. Rd1 {[%clk 0:02:32.7]} 12... Qc7 {[%clk 0:02:21]}
13. b3 {[%clk 0:02:33]} 13... O-O {[%clk 0:02:19.5]} 14. Bb2 {[%clk 0:02:33.4]}
14... h6 {[%clk 0:02:15.3]} 15. Rd2 {[%clk 0:02:28.4]} 15... Ne5 {[%clk
0:02:05.1]} 16. Rad1 {[%clk 0:02:25.7]} 16... Bd7 {[%clk 0:01:24.5]} 17. Nh4
{[%clk 0:02:20.4]} 17... Bxa4 {[%clk 0:01:01.3]} 18. bxa4 {[%clk 0:02:21.3]}
18... Rfe8 {[%clk 0:01:01.3]} 19. Nf5 {[%clk 0:02:20.6]} 19... Rcd8 {[%clk
0:01:01.4]} 20. h3 {[%clk 0:02:00.7]} 20... Bf8 {[%clk 0:00:45.1]} 21. f4 {[%clk
0:01:43.8]} 21... Ng6 {[%clk 0:00:41]} 22. Bxf6 {[%clk 0:01:40.1]} 22... gxf6
{[%clk 0:00:41.9]} 23. e4 {[%clk 0:01:40.7]} 23... Re6 {[%clk 0:00:30.9]} 24.
Ne3 {[%clk 0:01:40.3]} 24... Ne7 {[%clk 0:00:31.3]} 25. f5 {[%clk 0:01:37.2]}
25... Re5 {[%clk 0:00:30.8]} 26. Ng4 {[%clk 0:01:37.9]} 26... Bg7 {[%clk
0:00:21.2]} 27. Nxe5 {[%clk 0:01:17.1]} 27... fxe5 {[%clk 0:00:22.1]} 28. f6
{[%clk 0:01:11.7]} 28... Bxf6 {[%clk 0:00:22]} 29. Rf2 {[%clk 0:01:12.4]} 29...
Bg7 {[%clk 0:00:16.1]} 30. Rdf1 {[%clk 0:01:11.9]} 30... Rf8 {[%clk 0:00:15.8]}
31. Qe2 {[%clk 0:01:06.4]} 31... Nc6 {[%clk 0:00:14.1]} 32. h4 {[%clk
0:01:06.7]} 32... Nd4 {[%clk 0:00:13.1]} 33. Qg4 {[%clk 0:01:04.9]} 33... Qe7
{[%clk 0:00:07.3]} 34. Bh3 {[%clk 0:01:03]} 34... a5 {[%clk 0:00:04.6]} 35. Qh5
{[%clk 0:01:02.7]} 35... Qe8 {[%clk 0:00:02.9]} 36. g4 {[%clk 0:00:57]} 36... f6
{[%clk 0:00:02.6]} 37. Qxe8 {[%clk 0:00:52.3]} 37... Rxe8 {[%clk 0:00:03.5]} 38.
Kg2 {[%clk 0:00:47.7]} 38... Ne6 {[%clk 0:00:02.7]} 39. Rd1 {[%clk 0:00:43.7]}
39... Nf4+ {[%clk 0:00:02.9]} 40. Kg3 {[%clk 0:00:43.7]} 40... Rd8 {[%clk
0:00:03]} 41. Rfd2 {[%clk 0:00:42.9]} 41... Bf8 {[%clk 0:00:03.3]} 42. Bf1
{[%clk 0:00:42.6]} 42... Ne6 {[%clk 0:00:03.4]} 43. Bd3 {[%clk 0:00:39.1]} 43...
Be7 {[%clk 0:00:03.8]} 44. Rf2 {[%clk 0:00:38.5]} 44... Kg7 {[%clk 0:00:04.3]}
45. Be2 {[%clk 0:00:35.1]} 45... Nc7 {[%clk 0:00:03.8]} 46. Rdf1 {[%clk
0:00:31.1]} 46... Na8 {[%clk 0:00:03.3]} 47. g5 {[%clk 0:00:30.9]} 47... Rf8
{[%clk 0:00:03.5]} 48. gxh6+ {[%clk 0:00:29.6]} 48... Kxh6 {[%clk 0:00:03.6]}
49. Kh3 {[%clk 0:00:29.5]} 49... Nb6 {[%clk 0:00:04.1]} 50. Rg1 {[%clk
0:00:29.6]} 50... Nxa4 {[%clk 0:00:03.6]} 51. Rfg2 {[%clk 0:00:30]} 51... Nc3
{[%clk 0:00:02.6]} 52. Rg6+ {[%clk 0:00:29.5]} 52... Kh7 {[%clk 0:00:03.1]} 53.
Rg7+ {[%clk 0:00:29.9]} 53... Kh8 {[%clk 0:00:03.6]} 54. Bh5 {[%clk 0:00:23.9]}
54... Nxe4 {[%clk 0:00:02.9]} 55. Rxe7 {[%clk 0:00:23.2]} 55... f5 {[%clk
0:00:03.2]} 56. Bg6 {[%clk 0:00:23]} 56... Nf6 {[%clk 0:00:02.8]} 57. Bxf5
{[%clk 0:00:23.1]} 57... a4 {[%clk 0:00:03.2]} 58. Rg6 {[%clk 0:00:22.6]} 58...
b3 {[%clk 0:00:02.3]} 59. Rh6+ {[%clk 0:00:21.6]} 59... Kg8 {[%clk 0:00:02.7]}
60. axb3 {[%clk 0:00:21.5]} 60... a3 {[%clk 0:00:02.4]} 61. Be6+ {[%clk
0:00:21.7]} 61... Rf7 {[%clk 0:00:02.2]} 62. Rxf7 {[%clk 0:00:21.9]} 1-0

[Event "Late-Titled-Tuesday-Blitz-October-03-2023"]
[Site "Chess.com"]
[Date "2023.10.03"]
[Round "7"]
[White "Kirill_Klukin"]
[Black "TheoSlade"]
[Result "1-0"]
[WhiteElo "2696"]
[BlackElo "2509"]
[TimeControl "180+1"]
[EndTime "15:14:53 PDT"]
[Termination "Kirill_Klukin won by resignation"]

1. c4 {[%clk 0:02:59.4]} 1... e6 {[%clk 0:03:00.4]} 2. Nc3 {[%clk 0:02:58.9]}
2... d5 {[%clk 0:03:00.9]} 3. d4 {[%clk 0:02:59.5]} 3... a6 {[%clk 0:03:00.9]}
4. cxd5 {[%clk 0:02:59.2]} 4... exd5 {[%clk 0:03:01.8]} 5. Bf4 {[%clk
0:02:59.4]} 5... Nf6 {[%clk 0:03:01.1]} 6. e3 {[%clk 0:02:59.6]} 6... c5 {[%clk
0:03:01.6]} 7. Nf3 {[%clk 0:02:57.8]} 7... c4 {[%clk 0:03:01.1]} 8. a4 {[%clk
0:02:57.6]} 8... Bb4 {[%clk 0:02:54.9]} 9. Nd2 {[%clk 0:02:39.8]} 9... O-O
{[%clk 0:02:53.7]} 10. Be2 {[%clk 0:02:39.7]} 10... Nc6 {[%clk 0:02:49.9]} 11.
O-O {[%clk 0:02:39.4]} 11... Be6 {[%clk 0:02:46.3]} 12. Bf3 {[%clk 0:02:17.3]}
12... Re8 {[%clk 0:02:44.2]} 13. Bg5 {[%clk 0:02:16.4]} 13... Bxc3 {[%clk
0:02:37.5]} 14. bxc3 {[%clk 0:02:16.4]} 14... h6 {[%clk 0:02:37.9]} 15. Bh4
{[%clk 0:02:16.6]} 15... b5 {[%clk 0:02:38.2]} 16. axb5 {[%clk 0:02:14.6]} 16...
axb5 {[%clk 0:02:39.1]} 17. Rxa8 {[%clk 0:02:10.9]} 17... Qxa8 {[%clk 0:02:40]}
18. Bxf6 {[%clk 0:02:11.3]} 18... gxf6 {[%clk 0:02:40.9]} 19. e4 {[%clk
0:02:11.9]} 19... Ne7 {[%clk 0:02:37.6]} 20. Re1 {[%clk 0:02:09.7]} 20... f5
{[%clk 0:02:26.2]} 21. exd5 {[%clk 0:02:02.6]} 21... Bxd5 {[%clk 0:02:21.4]} 22.
Qc1 {[%clk 0:02:02.8]} 22... Kh7 {[%clk 0:01:54.1]} 23. h3 {[%clk 0:01:59]}
23... Bxf3 {[%clk 0:01:49.9]} 24. Nxf3 {[%clk 0:01:58.6]} 24... Ng6 {[%clk
0:01:50.4]} 25. Rxe8 {[%clk 0:01:27.8]} 25... Qxe8 {[%clk 0:01:50.5]} 26. Qb1
{[%clk 0:01:28.6]} 26... Qd7 {[%clk 0:01:47]} 27. h4 {[%clk 0:01:27.9]} 27...
Nf4 {[%clk 0:01:44.7]} 28. Ne5 {[%clk 0:01:22]} 28... Qe6 {[%clk 0:01:31.2]} 29.
Qxb5 {[%clk 0:01:02]} 29... Ne2+ {[%clk 0:01:31.4]} 30. Kf1 {[%clk 0:01:00.9]}
30... Nxc3 {[%clk 0:01:31.8]} 31. Qxc4 {[%clk 0:01:01.1]} 31... Nd5 {[%clk
0:01:11.4]} 32. Qc6 {[%clk 0:00:55.3]} 32... Qxc6 {[%clk 0:01:01]} 33. Nxc6
{[%clk 0:00:55.5]} 33... Kg6 {[%clk 0:01:01.7]} 34. Ne5+ {[%clk 0:00:53.6]}
34... Kh5 {[%clk 0:00:55.5]} 35. Nxf7 {[%clk 0:00:51.9]} 35... Kxh4 {[%clk
0:00:48.4]} 36. Nxh6 {[%clk 0:00:51.9]} 36... f4 {[%clk 0:00:46.8]} 37. Ke2
{[%clk 0:00:47.6]} 37... Kg5 {[%clk 0:00:46.9]} 38. Nf7+ {[%clk 0:00:46.8]}
38... Kf5 {[%clk 0:00:46.7]} 39. Kf3 {[%clk 0:00:44.3]} 39... Nb4 {[%clk
0:00:36.3]} 40. Nd6+ {[%clk 0:00:15.6]} 40... Ke6 {[%clk 0:00:35.9]} 41. Nb5
{[%clk 0:00:16.1]} 41... Kf5 {[%clk 0:00:35.2]} 42. Ke2 {[%clk 0:00:04]} 42...
Ke4 {[%clk 0:00:32.9]} 43. Kd2 {[%clk 0:00:02.7]} 43... Nc6 {[%clk 0:00:30.6]}
44. d5 {[%clk 0:00:02.3]} 44... Kxd5 {[%clk 0:00:29.8]} 45. Nc3+ {[%clk
0:00:03.1]} 45... Ke5 {[%clk 0:00:29.3]} 46. Kd3 {[%clk 0:00:03.1]} 46... Nb4+
{[%clk 0:00:27.8]} 47. Ke2 {[%clk 0:00:03.3]} 47... Kf5 {[%clk 0:00:27.1]} 48.
Kf3 {[%clk 0:00:03.2]} 48... Nc2 {[%clk 0:00:23.7]} 49. Ke2 {[%clk 0:00:03.4]}
49... Nd4+ {[%clk 0:00:20.8]} 50. Kd3 {[%clk 0:00:03.7]} 50... Ne6 {[%clk
0:00:20.7]} 51. Ne2 {[%clk 0:00:04.2]} 51... Nc5+ {[%clk 0:00:19.5]} 52. Kd4
{[%clk 0:00:03.7]} 52... Ne6+ {[%clk 0:00:20]} 53. Kd5 {[%clk 0:00:03.9]} 53...
Ng5 {[%clk 0:00:15.6]} 54. Nd4+ {[%clk 0:00:03.9]} 54... Kf6 {[%clk 0:00:15.2]}
55. Nf3 {[%clk 0:00:03.3]} 55... Kf5 {[%clk 0:00:05]} 56. Nxg5 {[%clk
0:00:03.2]} 56... Kxg5 {[%clk 0:00:05.9]} 57. Ke4 {[%clk 0:00:03.4]} 57... Kg4
{[%clk 0:00:06.5]} 58. f3+ {[%clk 0:00:03.4]} 58... Kg3 {[%clk 0:00:07]} 59. Kf5
{[%clk 0:00:03.8]} 59... Kxg2 {[%clk 0:00:07.5]} 60. Kxf4 {[%clk 0:00:04.7]}
60... Kh3 {[%clk 0:00:07.7]} 61. Ke5 {[%clk 0:00:05]} 1-0

[Event "Late-Titled-Tuesday-Blitz-October-03-2023"]
[Site "Chess.com"]
[Date "2023.10.03"]
[Round "7"]
[White "Zhigalko_Sergei"]
[Black "OparinGrigoriy"]
[Result "1-0"]
[WhiteElo "2968"]
[BlackElo "3000"]
[TimeControl "180+1"]
[EndTime "15:14:56 PDT"]
[Termination "Zhigalko_Sergei won by resignation"]

1. e4 {[%clk 0:03:00.9]} 1... e5 {[%clk 0:03:00.5]} 2. Nf3 {[%clk 0:03:01]} 2...
Nc6 {[%clk 0:03:01.3]} 3. Bc4 {[%clk 0:03:01.6]} 3... Nf6 {[%clk 0:03:01.9]} 4.
d3 {[%clk 0:03:01.6]} 4... h6 {[%clk 0:03:01]} 5. O-O {[%clk 0:02:59.7]} 5...
Bc5 {[%clk 0:02:57.7]} 6. c3 {[%clk 0:02:57.8]} 6... d6 {[%clk 0:02:57.5]} 7.
Nbd2 {[%clk 0:02:55.1]} 7... O-O {[%clk 0:02:56.9]} 8. Bb3 {[%clk 0:02:55.2]}
8... a5 {[%clk 0:02:57.1]} 9. h3 {[%clk 0:02:49.2]} 9... Re8 {[%clk 0:02:52.2]}
10. Re1 {[%clk 0:02:48.2]} 10... Ba7 {[%clk 0:02:52.7]} 11. Nf1 {[%clk
0:02:45.7]} 11... Be6 {[%clk 0:02:48.2]} 12. Ba4 {[%clk 0:02:45.8]} 12... Qb8
{[%clk 0:02:44.2]} 13. Bb5 {[%clk 0:02:41.8]} 13... Bd7 {[%clk 0:02:44.5]} 14.
Ng3 {[%clk 0:02:39.6]} 14... Ne7 {[%clk 0:02:44.9]} 15. Bxd7 {[%clk 0:02:38.7]}
15... Nxd7 {[%clk 0:02:45.8]} 16. d4 {[%clk 0:02:39.3]} 16... Ng6 {[%clk
0:02:35.8]} 17. Be3 {[%clk 0:02:35.1]} 17... Nf6 {[%clk 0:02:34.2]} 18. Qd3
{[%clk 0:02:26.6]} 18... b5 {[%clk 0:02:27.8]} 19. Rad1 {[%clk 0:02:25.8]} 19...
b4 {[%clk 0:02:26.5]} 20. dxe5 {[%clk 0:02:20.1]} 20... Nxe5 {[%clk 0:02:23.6]}
21. Nxe5 {[%clk 0:02:20.2]} 21... Rxe5 {[%clk 0:02:24.5]} 22. Bd4 {[%clk
0:02:20.3]} 22... Re6 {[%clk 0:02:20.8]} 23. Nf5 {[%clk 0:02:16.8]} 23... Bxd4
{[%clk 0:02:12.6]} 24. cxd4 {[%clk 0:02:12.9]} 24... Qb7 {[%clk 0:02:09.1]} 25.
d5 {[%clk 0:01:52.4]} 25... Re5 {[%clk 0:02:09.3]} 26. Qg3 {[%clk 0:01:52.4]}
26... g6 {[%clk 0:01:58.6]} 27. Qh4 {[%clk 0:01:19.3]} 27... gxf5 {[%clk
0:01:05.2]} 28. Qxf6 {[%clk 0:01:19]} 28... Qb5 {[%clk 0:01:03.4]} 29. Re3
{[%clk 0:01:12.1]} 29... f4 {[%clk 0:01:04]} 30. Qxf4 {[%clk 0:01:10.7]} 30...
Rg5 {[%clk 0:01:03.7]} 31. Rc1 {[%clk 0:00:48.2]} 31... Qb6 {[%clk 0:00:54.8]}
32. Rc6 {[%clk 0:00:35.8]} 32... Qa7 {[%clk 0:00:54.5]} 33. Rg3 {[%clk
0:00:32.2]} 33... Rxg3 {[%clk 0:00:53.7]} 34. Qxg3+ {[%clk 0:00:33.1]} 34... Kh7
{[%clk 0:00:54.3]} 35. e5 {[%clk 0:00:24.1]} 35... Rg8 {[%clk 0:00:49.4]} 36.
Qd3+ {[%clk 0:00:22.7]} 36... Kg7 {[%clk 0:00:35.7]} 37. exd6 {[%clk 0:00:20.4]}
37... cxd6 {[%clk 0:00:36.6]} 38. Rxd6 {[%clk 0:00:20]} 38... Qe7 {[%clk
0:00:34.2]} 39. Qg3+ {[%clk 0:00:15.3]} 39... Kh7 {[%clk 0:00:25.9]} 40. Qf4
{[%clk 0:00:15.1]} 40... Rg5 {[%clk 0:00:24.4]} 41. h4 {[%clk 0:00:07.3]} 41...
Rh5 {[%clk 0:00:21.5]} 42. g3 {[%clk 0:00:06.7]} 42... a4 {[%clk 0:00:11.5]} 43.
Kg2 {[%clk 0:00:06.3]} 43... a3 {[%clk 0:00:11.7]} 44. bxa3 {[%clk 0:00:06.4]}
44... bxa3 {[%clk 0:00:12.6]} 45. Rf6 {[%clk 0:00:05.5]} 45... Kg7 {[%clk
0:00:13.1]} 46. Qg4+ {[%clk 0:00:04.1]} 46... Kxf6 {[%clk 0:00:12.2]} 47. Qxh5
{[%clk 0:00:04.4]} 47... Kg7 {[%clk 0:00:08.8]} 48. Qg4+ {[%clk 0:00:04.5]}
48... Kf8 {[%clk 0:00:07.5]} 49. Qf4 {[%clk 0:00:04.2]} 49... Kg7 {[%clk
0:00:04.8]} 50. Qd4+ {[%clk 0:00:04.2]} 50... Kg8 {[%clk 0:00:04.3]} 51. d6
{[%clk 0:00:04.6]} 51... Qb7+ {[%clk 0:00:05]} 52. Kh2 {[%clk 0:00:04.4]} 52...
Qd7 {[%clk 0:00:05.5]} 53. Qd3 {[%clk 0:00:04.8]} 53... Qa7 {[%clk 0:00:03.2]}
54. d7 {[%clk 0:00:04.1]} 54... Qxf2+ {[%clk 0:00:03.6]} 55. Kh3 {[%clk
0:00:04.6]} 55... Kg7 {[%clk 0:00:03.9]} 56. d8=Q {[%clk 0:00:05.4]} 1-0